fUST/lending_fUST_20250901
["ID","MTS","AMOUNT","RATE_DAILY","PERIOD"]
[382560260,1756667441339,-480.0,0.00016694,2]
[382560261,1756667441349,-480.0,0.00016694,2]
[382560262,1756667441358,-480.0,0.00016694,2]
[382560263,1756667441368,-480.0,0.00016694,2]
[382560264,1756667441378,-480.0,0.00016694,2]
[382560265,1756667441387,-480.0,0.00016694,2]
[382560266,1756667441397,-480.0,0.00016694,2]
[382560267,1756667441407,-480.0,0.00016694,2]
[382560268,1756667441419,-240.98376815,0.00016694,2]
[382560269,1756667441429,-480.0,0.00016694,2]
[382560270,1756667441439,-411.61085373,0.00016694,2]
[382560271,1756667441449,-480.0,0.00016694,2]
[382560272,1756667441459,-480.0,0.00016694,2]
[382560273,1756667441470,-1192.66,0.00016694,2]
[382560274,1756667441479,-489.67,0.00016694,2]
[382560275,1756667441490,-480.0,0.00016694,2]
[382560276,1756667441807,-155.7561095,0.00016694,2]
[382560277,1756667441822,-1113.86,0.00016694,2]
[382560278,1756667441832,-480.0,0.00016694,2]
[382560279,1756667441842,-480.0,0.00016694,2]
[382560280,1756667441851,-480.0,0.00016694,2]
[382560281,1756667441861,-709.45,0.00016694,2]
[382560282,1756667441871,-579.18,0.00016694,2]
[382560283,1756667441880,-480.0,0.00016694,2]
[382560284,1756667441890,-608.14,0.00016694,2]
[382560285,1756667441900,-480.0,0.00016694,2]
[382560286,1756667441915,-480.0,0.00016694,2]
[382560287,1756667441925,-480.0,0.00016694,2]
[382560288,1756667441935,-480.0,0.00016694,2]
[382560289,1756667441944,-480.0,0.00016694,2]
[382560290,1756667441954,-556.27,0.00016694,2]
[382560291,1756667441963,-480.0,0.00016694,2]
[382560292,1756667441973,-498.23,0.00016694,2]
[382560293,1756667441982,-480.0,0.00016694,2]
[382560294,1756667441991,-480.0,0.00016694,2]
[382560295,1756667442001,-480.0,0.00016694,2]
[382560296,1756667442010,-555.06,0.00016694,2]
[382560297,1756667442020,-186.55579662,0.00016694,2]
[382560298,1756667442029,-480.0,0.00016694,2]
[382560299,1756667442039,-480.0,0.00016694,2]
[382560300,1756667442048,-480.0,0.00016694,2]
[382560301,1756667442057,-480.0,0.00016694,2]
[382560302,1756667442067,-480.0,0.00016694,2]
[382560303,1756667442077,-480.0,0.00016694,2]
[382560304,1756667442087,-712.98,0.00016694,2]
[382560305,1756667442097,-480.0,0.00016694,2]
[382560306,1756667442107,-480.0,0.00016694,2]
[382560307,1756667442116,-480.0,0.00016694,2]
[382560308,1756667442126,-480.0,0.00016694,2]
[382560309,1756667442136,-480.0,0.00016694,2]
[382560310,1756667442146,-1198.53,0.00016694,2]
[382560311,1756667442156,-480.0,0.00016694,2]
[382560312,1756667442167,-1106.05,0.00016694,2]
[382560313,1756667442176,-480.0,0.00016694,2]
[382560314,1756667442186,-480.0,0.00016694,2]
[382560315,1756667442197,-480.0,0.00016694,2]
[382560316,1756667442206,-480.0,0.00016694,2]
[382560317,1756667442216,-480.0,0.00016694,2]
[382560318,1756667442225,-480.0,0.00016694,2]
[382560319,1756667442236,-583.26,0.00016694,2]
[382560320,1756667442246,-480.0,0.00016694,2]
[382560321,1756667442256,-480.0,0.00016694,2]
[382560322,1756667442266,-480.0,0.00016694,2]
[382560323,1756667442276,-584.97,0.00016694,2]
[382560324,1756667442286,-480.0,0.00016694,2]
[382560325,1756667442300,-480.0,0.00016694,2]
[382560326,1756667442310,-480.0,0.00016694,2]
[382560327,1756667442320,-480.0,0.00016694,2]
[382560328,1756667442331,-480.0,0.00016694,2]
[382560329,1756667442342,-1051.3,0.00016694,2]
[382560330,1756667442351,-520.18,0.00016694,2]
[382560331,1756667442361,-480.0,0.00016694,2]
[382560332,1756667442370,-480.0,0.00016694,2]
[382560333,1756667442380,-1095.71,0.00016694,2]
[382560334,1756667442389,-480.0,0.00016694,2]
[382560335,1756667442399,-480.0,0.00016694,2]
[382560336,1756667442408,-480.0,0.00016694,2]
[382560337,1756667442418,-480.0,0.00016694,2]
[382560338,1756667442427,-480.0,0.00016694,2]
[382560339,1756667442437,-540.64,0.00016694,2]
[382560340,1756667442447,-480.0,0.00016694,2]
[382560341,1756667442457,-520.32,0.00016694,2]
[382560342,1756667442466,-480.0,0.00016694,2]
[382560343,1756667442475,-480.0,0.00016694,2]
[382560344,1756667442485,-480.0,0.00016694,2]
[382560345,1756667442494,-480.0,0.00016694,2]
[382560346,1756667442504,-480.0,0.00016694,2]
[382560347,1756667442514,-480.0,0.00016694,2]
[382560348,1756667442524,-837.29,0.00016694,2]
[382560349,1756667442535,-480.0,0.00016694,2]
[382560350,1756667442546,-480.0,0.00016694,2]
[382560351,1756667442556,-480.0,0.00016694,2]
[382560352,1756667442566,-480.0,0.00016694,2]
[382560353,1756667442575,-480.0,0.00016694,2]
[382560354,1756667442585,-480.0,0.00016694,2]
[382560355,1756667442594,-660.32,0.00016694,2]
[382560356,1756667442603,-480.0,0.00016694,2]
[382560357,1756667442614,-480.0,0.00016694,2]
[382560358,1756667442624,-480.0,0.00016694,2]
[382560359,1756667442634,-416.95114487,0.00016694,2]
[382560360,1756667442643,-480.0,0.00016694,2]
[382560361,1756667442652,-480.0,0.00016695,2]
[382560362,1756667442662,-400.0,0.00016695,2]
[382560363,1756667442672,-1201.79,0.00016695,2]
[382560364,1756667442682,-844.21,0.00016695,2]
[382560365,1756667442692,-1250.07,0.00016695,2]
[382560366,1756667442701,-611.31,0.00016695,2]
[382560367,1756667442711,-615.39,0.00016695,2]
[382560368,1756667442721,-480.0,0.00016695,2]
[382560369,1756667442731,-480.0,0.00016695,2]
[382560370,1756667442740,-480.0,0.00016695,2]
[382560371,1756667442750,-480.0,0.00016695,2]
[382560372,1756667442759,-794.57,0.00016695,2]
[382560373,1756667442768,-480.0,0.00016695,2]
[382560374,1756667442778,-594.12225828,0.00016695,2]
[382560375,1756667442787,-480.0,0.00016695,2]
[382560376,1756667442796,-712.01,0.00016695,2]
[382560377,1756667442807,-1010.6,0.00016695,2]
[382560378,1756667442817,-480.0,0.00016695,2]
[382560379,1756667442826,-480.0,0.00016695,2]
[382560380,1756667442838,-480.0,0.00016695,2]
[382560381,1756667442850,-896.88,0.00016695,2]
[382560382,1756667442860,-480.0,0.00016695,2]
[382560384,1756667442870,-600.98,0.00016695,2]
[382560385,1756667442879,-279.75704902,0.00016695,2]
[382560386,1756667442889,-480.0,0.00016695,2]
[382560387,1756667442899,-881.54,0.00016695,2]
[382560388,1756667442908,-480.0,0.00016695,2]
[382560389,1756667442918,-1648.76,0.00016695,2]
[382560390,1756667442930,-480.0,0.00016695,2]
[382560391,1756667442941,-480.0,0.00016695,2]
[382560392,1756667442950,-480.0,0.00016695,2]
[382560393,1756667442960,-480.0,0.00016695,2]
[382560394,1756667442970,-681.26,0.00016695,2]
[382560395,1756667442980,-480.0,0.00016695,2]
[382560396,1756667442989,-604.47,0.00016695,2]
[382560397,1756667442998,-480.0,0.00016695,2]
[382560398,1756667443008,-480.0,0.00016695,2]
[382560399,1756667443018,-480.0,0.00016695,2]
[382560400,1756667443027,-646.1,0.00016695,2]
[382560402,1756667443037,-865.88,0.00016695,2]
[382560404,1756667443046,-1000.0,0.00016696,2]
[382560406,1756667443056,-1000.0,0.00016696,2]
[382560408,1756667443066,-213.02,0.00016696,2]
[382560410,1756667443075,-512.09,0.00016697,2]
[382560411,1756667443084,-480.0,0.00016697,2]
[382560412,1756667443094,-480.0,0.00016697,2]
[382560413,1756667443103,-480.0,0.00016697,2]
[382560414,1756667443112,-480.0,0.00016697,2]
[382560415,1756667443122,-753.74,0.00016697,2]
[382560417,1756667443131,-480.0,0.00016697,2]
[382560418,1756667443140,-480.0,0.00016697,2]
[382560419,1756667443150,-480.0,0.00016697,2]
[382560420,1756667443159,-480.0,0.00016697,2]
[382560421,1756667443168,-480.0,0.00016697,2]
[382560422,1756667443178,-480.0,0.00016697,2]
[382560424,1756667443187,-500.0,0.00016697,2]
[382560425,1756667443196,-480.0,0.00016697,2]
[382560426,1756667443205,-480.0,0.00016697,2]
[382560427,1756667443215,-480.0,0.00016697,2]
[382560428,1756667443224,-480.0,0.00016697,2]
[382560429,1756667443233,-480.0,0.00016697,2]
[382560430,1756667443243,-480.0,0.00016697,2]
[382560431,1756667443252,-583.31,0.00016697,2]
[382560432,1756667443263,-480.0,0.00016697,2]
[382560433,1756667443272,-482.4887696,0.00016697,2]
[382560434,1756667443283,-480.0,0.00016697,2]
[382560435,1756667443292,-739.74,0.00016697,2]
[382560436,1756667443301,-480.0,0.00016697,2]
[382560437,1756667443311,-999.94,0.00016697,2]
[382560438,1756667443320,-272.52744143,0.00016697,2]
[382560439,1756667443330,-480.0,0.00016697,2]
[382560440,1756667443340,-480.0,0.00016697,2]
[382560441,1756667443350,-515.35,0.00016697,2]
[382560442,1756667443359,-480.0,0.00016697,2]
[382560443,1756667443369,-384.98239641,0.00016697,2]
[382560444,1756667443379,-480.0,0.00016697,2]
[382560445,1756667443388,-480.0,0.00016697,2]
[382560446,1756667443398,-480.0,0.00016697,2]
[382560447,1756667443408,-1033.61,0.00016697,2]
[382560448,1756667443417,-480.0,0.00016697,2]
[382560449,1756667443426,-496.35,0.00016697,2]
[382560450,1756667443435,-627.85,0.00016697,2]
[382560451,1756667443445,-480.0,0.00016697,2]
[382560452,1756667443455,-1298.35,0.00016697,2]
[382560453,1756667443464,-480.0,0.00016697,2]
[382560454,1756667443473,-480.0,0.00016697,2]
[382560455,1756667443483,-758.67,0.00016697,2]
[382560456,1756667443492,-536.86,0.00016697,2]
[382560457,1756667443501,-480.0,0.00016697,2]
[382560458,1756667443511,-480.0,0.00016697,2]
[382560459,1756667443519,-480.0,0.00016697,2]
[382560460,1756667443529,-480.0,0.00016697,2]
[382560461,1756667443539,-507.77,0.00016697,2]
[382560462,1756667443550,-571.55,0.00016697,2]
[382560463,1756667443559,-480.0,0.00016697,2]
[382560464,1756667443571,-480.0,0.00016697,2]
[382560465,1756667443585,-480.0,0.00016697,2]
[382560466,1756667443594,-608.77,0.00016697,2]
[382560467,1756667443603,-599.00710125,0.00016697,2]
[382560468,1756667443612,-480.0,0.00016697,2]
[382560469,1756667443621,-480.0,0.00016697,2]
[382560470,1756667443631,-303.32377065,0.00016697,2]
[382560471,1756667443640,-480.0,0.00016697,2]
[382560472,1756667443649,-480.0,0.00016697,2]
[382560474,1756667443659,-681.56,0.00016697,2]
[382560475,1756667443668,-598.24,0.00016697,2]
[382560476,1756667443677,-480.0,0.00016697,2]
[382560477,1756667443686,-420.0,0.00016697,2]
[382560478,1756667443695,-151.0,0.000167,2]
[382560479,1756667443705,-151.0,0.000167,2]
[382560480,1756667443714,-1083.18193812,0.00016768,2]
[382560481,1756667443725,-420.0,0.00016794,2]
[382560482,1756667443734,-1466.21838177,0.00016798,2]
[382560483,1756667443743,-3298.99135899,0.00016798,2]
[382560484,1756667443753,-151.0,0.000168,2]
[382560485,1756667443763,-151.0,0.000168,2]
[382560486,1756667443773,-151.0,0.000168,2]
[382560487,1756667443783,-151.0,0.000168,2]
[382560488,1756667443792,-674.42,0.00016828,2]
[382560489,1756667443802,-480.0,0.0001683,2]
[382560490,1756667443811,-480.0,0.0001683,2]
[382560491,1756667443821,-1016.2,0.0001683,2]
[382560492,1756667443831,-1221.41,0.0001683,2]
[382560493,1756667443841,-480.0,0.0001683,2]
[382560494,1756667443850,-500.0,0.00016831,2]
[382560495,1756667443860,-248.69622921,0.00016831,2]
[382560496,1756667443869,-500.0,0.00016831,2]
[382560497,1756667443881,-500.0,0.00016831,2]
[382560498,1756667443890,-1371.2,0.00016831,2]
[382560499,1756667443899,-480.0,0.00016831,2]
[382560500,1756667443909,-480.0,0.00016831,2]
[382560501,1756667443918,-496.73,0.00016831,2]
[382560502,1756667443928,-681.76,0.00016831,2]
[382560503,1756667443937,-480.0,0.00016831,2]
[382560504,1756667443946,-480.0,0.00016831,2]
[382560505,1756667443956,-480.0,0.00016831,2]
[382560506,1756667443965,-512.57,0.00016831,2]
[382560507,1756667443974,-2150.36,0.00016831,2]
[382560508,1756667443983,-550.15,0.00016831,2]
[382560509,1756667443992,-480.0,0.00016831,2]
[382560510,1756667444002,-1279.4,0.00016831,2]
[382560511,1756667444011,-1948.85,0.00016831,2]
[382560512,1756667444021,-495.43,0.00016831,2]
[382560513,1756667444030,-1802.96,0.00016831,2]
[382560514,1756667444039,-480.0,0.00016831,2]
[382560515,1756667444048,-610.41,0.00016831,2]
[382560516,1756667444057,-480.0,0.00016831,2]
[382560517,1756667444066,-727.24,0.00016831,2]
[382560518,1756667444076,-500.0,0.00016833,2]
[382560519,1756667444085,-566.15,0.00016833,2]
[382560520,1756667444095,-480.0,0.00016833,2]
[382560521,1756667444104,-996.63,0.00016833,2]
[382560522,1756667444113,-775.71,0.00016833,2]
[382560523,1756667444123,-1024.41,0.00016833,2]
[382560524,1756667444132,-480.0,0.00016833,2]
[382560525,1756667444141,-478.17347262,0.00016833,2]
[382560526,1756667444151,-516.72,0.00016833,2]
[382560527,1756667444161,-532.12,0.00016833,2]
[382560528,1756667444170,-960.24,0.00016833,2]
[382560529,1756667444180,-480.0,0.00016833,2]
[382560530,1756667444189,-972.19,0.00016833,2]
[382560531,1756667444199,-480.0,0.00016833,2]
[382560532,1756667444209,-739.13,0.00016834,2]
[382560533,1756667444218,-5980.27,0.00016834,2]
[382560534,1756667444228,-1259.63,0.00016834,2]
[382560535,1756667444238,-4896.03,0.00016834,2]
[382560536,1756667444247,-610.66,0.00016834,2]
[382560537,1756667444257,-1048.86,0.00016834,2]
[382560538,1756667444267,-500.0,0.00016835,2]
[382560539,1756667444276,-198.0,0.00016835,2]
[382560540,1756667444286,-198.0,0.00016835,2]
[382560541,1756667444301,-500.0,0.00016835,2]
[382560542,1756667444310,-578.34246342,0.00016835,2]
[382560543,1756667444320,-619.28300412,0.00016835,2]
[382560544,1756667444329,-198.0,0.00016835,2]
[382560545,1756667444340,-151.0,0.00016835,2]
[382560546,1756667444351,-198.0,0.00016835,2]
[382560547,1756667444360,-151.0,0.00016835,2]
[382560548,1756667444369,-984.15,0.00016835,2]
[382560549,1756667444380,-480.0,0.00016835,2]
[382560550,1756667444390,-480.0,0.00016835,2]
[382560551,1756667444399,-480.0,0.00016835,2]
[382560552,1756667444409,-480.0,0.00016835,2]
[382560553,1756667444419,-526.77,0.00016835,2]
[382560554,1756667444428,-480.0,0.00016835,2]
[382560555,1756667444438,-480.0,0.00016835,2]
[382560556,1756667444447,-480.0,0.00016835,2]
[382560557,1756667444457,-631.42,0.00016835,2]
[382560558,1756667444468,-480.0,0.00016835,2]
[382560559,1756667444477,-502.36,0.00016835,2]
[382560560,1756667444487,-1549.42,0.00016835,2]
[382560561,1756667444496,-207.70151326,0.00016835,2]
[382560562,1756667444506,-480.0,0.00016835,2]
[382560563,1756667444515,-480.0,0.00016835,2]
[382560564,1756667444526,-480.0,0.00016835,2]
[382560565,1756667444535,-530.04,0.00016835,2]
[382560566,1756667444544,-513.79,0.00016835,2]
[382560567,1756667444554,-480.0,0.00016835,2]
[382560568,1756667444564,-480.0,0.00016835,2]
[382560569,1756667444574,-480.0,0.00016835,2]
[382560570,1756667444584,-480.0,0.00016835,2]
[382560571,1756667444593,-732.02,0.00016835,2]
[382560572,1756667444603,-687.45,0.00016835,2]
[382560573,1756667444612,-812.42,0.00016835,2]
[382560574,1756667444621,-480.0,0.00016835,2]
[382560575,1756667444631,-734.57,0.00016835,2]
[382560576,1756667444640,-1065.94,0.00016835,2]
[382560577,1756667444650,-1182.31,0.00016835,2]
[382560578,1756667444659,-480.0,0.00016835,2]
[382560579,1756667444669,-833.06,0.00016835,2]
[382560580,1756667444679,-480.0,0.00016835,2]
[382560581,1756667444688,-502.05,0.00016835,2]
[382560582,1756667444698,-491.56,0.00016835,2]
[382560583,1756667444708,-480.0,0.00016835,2]
[382560584,1756667444719,-506.28,0.00016835,2]
[382560585,1756667444728,-480.0,0.00016835,2]
[382560586,1756667444737,-480.0,0.00016835,2]
[382560587,1756667444747,-480.0,0.00016835,2]
[382560588,1756667444757,-625.11,0.00016835,2]
[382560589,1756667444767,-480.0,0.00016835,2]
[382560590,1756667444776,-746.31,0.00016835,2]
[382560591,1756667444785,-923.5,0.00016835,2]
[382560592,1756667444795,-970.69,0.00016835,2]
[382560593,1756667444804,-480.0,0.00016835,2]
[382560594,1756667444814,-480.0,0.00016835,2]
[382560595,1756667444823,-562.55,0.00016835,2]
[382560596,1756667444832,-480.0,0.00016835,2]
[382560597,1756667444842,-480.0,0.00016835,2]
[382560598,1756667444851,-1838.99,0.00016835,2]
[382560599,1756667444861,-480.0,0.00016835,2]
[382560600,1756667444871,-480.0,0.00016835,2]
[382560601,1756667444881,-958.89,0.00016835,2]
[382560602,1756667444891,-480.0,0.00016835,2]
[382560603,1756667444900,-1508.35,0.00016835,2]
[382560604,1756667444910,-480.0,0.00016835,2]
[382560605,1756667444920,-679.18,0.00016835,2]
[382560606,1756667444929,-480.0,0.00016835,2]
[382560607,1756667444939,-830.89,0.00016835,2]
[382560608,1756667444948,-991.88,0.00016835,2]
[382560609,1756667444957,-480.0,0.00016835,2]
[382560610,1756667445120,-828.29,0.00016835,2]
[382560611,1756667445132,-480.0,0.00016835,2]
[382560612,1756667445143,-480.0,0.00016835,2]
[382560613,1756667445154,-838.22,0.00016835,2]
[382560614,1756667445163,-480.0,0.00016835,2]
[382560615,1756667445174,-480.0,0.00016835,2]
[382560616,1756667445183,-4827.11,0.00016835,2]
[382560617,1756667445193,-480.0,0.00016835,2]
[382560618,1756667445202,-480.0,0.00016835,2]
[382560619,1756667445212,-1192.09,0.00016835,2]
[382560620,1756667445223,-2615.67,0.00016835,2]
[382560621,1756667445234,-389.78158814,0.00016835,2]
[382560622,1756667445244,-480.0,0.00016835,2]
[382560623,1756667445254,-642.11,0.00016835,2]
[382560624,1756667445264,-480.0,0.00016835,2]
[382560625,1756667445275,-480.0,0.00016835,2]
[382560626,1756667445285,-480.0,0.00016835,2]
[382560627,1756667445294,-754.99,0.00016835,2]
[382560628,1756667445304,-562.55,0.00016835,2]
[382560629,1756667445313,-480.0,0.00016835,2]
[382560630,1756667445325,-480.0,0.00016835,2]
[382560631,1756667445335,-535.44103704,0.00016835,2]
[382560632,1756667445344,-480.0,0.00016835,2]
[382560633,1756667445354,-480.0,0.00016835,2]
[382560634,1756667445364,-480.0,0.00016835,2]
[382560635,1756667445374,-480.0,0.00016835,2]
[382560636,1756667445383,-480.0,0.00016835,2]
[382560637,1756667445392,-480.0,0.00016835,2]
[382560638,1756667445402,-480.0,0.00016835,2]
[382560639,1756667445412,-1083.18193812,0.00016868,2]
[382560640,1756667445422,-1631.08524558,0.00016872,2]
[382560641,1756667445432,-3665.99733097,0.00016872,2]
[382560642,1756667445442,-704.88745533,0.00016872,2]
[382560643,1756667445453,-151.0,0.000169,2]
[382560644,1756667445462,-151.0,0.000169,2]
[382560645,1756667445472,-500.0,0.00016925,2]
[382560646,1756667445482,-500.0,0.00016925,2]
[382560647,1756667445491,-501.21878673,0.00016925,2]
[382560648,1756667445501,-2989.03,0.00016933,2]
[382560649,1756667445511,-1200.72,0.00016933,2]
[382560650,1756667445521,-480.0,0.00016933,2]
[382560651,1756667445532,-2184.82,0.00016933,2]
[382560652,1756667445542,-1077.34,0.00016933,2]
[382560653,1756667445552,-698.87,0.00016933,2]
[382560654,1756667445561,-1393.91,0.00016933,2]
[382560655,1756667445573,-480.0,0.00016933,2]
[382560656,1756667445583,-588.89,0.00016935,2]
[382560657,1756667445592,-480.0,0.00016935,2]
[382560658,1756667445602,-1026.89,0.00016935,2]
[382560659,1756667445613,-480.0,0.00016935,2]
[382560660,1756667445623,-210.59940042,0.00016935,2]
[382560661,1756667445632,-480.0,0.00016935,2]
[382560662,1756667445642,-924.16,0.00016935,2]
[382560663,1756667445652,-558.57,0.00016935,2]
[382560664,1756667445662,-781.04,0.00016935,2]
[382560665,1756667445672,-480.0,0.00016935,2]
[382560666,1756667445681,-644.36,0.00016935,2]
[382560667,1756667445692,-480.0,0.00016935,2]
[382560668,1756667445703,-480.0,0.00016935,2]
[382560669,1756667445712,-480.0,0.00016935,2]
[382560670,1756667445721,-503.8,0.00016935,2]
[382560671,1756667445730,-1380.57,0.00016935,2]
[382560672,1756667445739,-480.0,0.00016935,2]
[382560673,1756667445749,-1236.87,0.00016935,2]
[382560674,1756667445759,-480.0,0.00016935,2]
[382560675,1756667445768,-480.0,0.00016935,2]
[382560676,1756667445777,-1001.79,0.00016935,2]
[382560677,1756667445787,-480.0,0.00016935,2]
[382560678,1756667445797,-1132.49,0.00016935,2]
[382560679,1756667445806,-480.0,0.00016935,2]
[382560680,1756667445816,-480.0,0.00016935,2]
[382560681,1756667445826,-1079.02,0.00016935,2]
[382560682,1756667445836,-439.57964417,0.00016935,2]
[382560683,1756667445849,-480.0,0.00016935,2]
[382560684,1756667445860,-480.0,0.00016935,2]
[382560685,1756667445871,-480.0,0.00016935,2]
[382560687,1756667445881,-480.0,0.00016935,2]
[382560688,1756667445891,-480.0,0.00016935,2]
[382560690,1756667445901,-1020.26,0.00016935,2]
[382560692,1756667445910,-480.0,0.00016935,2]
[382560693,1756667445921,-992.33,0.00016935,2]
[382560694,1756667445930,-1033.39,0.00016935,2]
[382560695,1756667445940,-480.0,0.00016935,2]
[382560696,1756667445950,-480.0,0.00016935,2]
[382560698,1756667445960,-1210.91,0.00016935,2]
[382560700,1756667445969,-1008.2,0.00016935,2]
[382560701,1756667445978,-925.92,0.00016935,2]
[382560702,1756667445988,-1254.49,0.00016935,2]
[382560703,1756667445997,-480.0,0.00016935,2]
[382560704,1756667446007,-480.0,0.00016935,2]
[382560705,1756667446017,-480.0,0.00016935,2]
[382560706,1756667446027,-672.84,0.00016935,2]
[382560708,1756667446036,-1120.56,0.00016935,2]
[382560709,1756667446048,-480.0,0.00016935,2]
[382560710,1756667446057,-643.75,0.00016935,2]
[382560711,1756667446067,-1366.78,0.00016935,2]
[382560712,1756667446078,-782.61,0.00016935,2]
[382560713,1756667446087,-496.63,0.00016935,2]
[382560714,1756667446097,-480.0,0.00016935,2]
[382560715,1756667446108,-480.0,0.00016935,2]
[382560716,1756667446117,-480.0,0.00016968,2]
[382560717,1756667446126,-480.0,0.00016968,2]
[382560718,1756667446137,-480.0,0.00016968,2]
[382560719,1756667446148,-480.0,0.00016968,2]
[382560720,1756667446157,-480.0,0.00016968,2]
[382560721,1756667446166,-480.0,0.00016968,2]
[382560722,1756667446175,-480.0,0.00016968,2]
[382560723,1756667446184,-480.0,0.00016968,2]
[382560724,1756667446193,-480.0,0.00016968,2]
[382560725,1756667446202,-480.0,0.00016968,2]
[382560726,1756667446211,-480.0,0.00016968,2]
[382560727,1756667446220,-1099.8,0.00016968,2]
[382560728,1756667446229,-480.0,0.00016968,2]
[382560729,1756667446238,-855.52,0.00016968,2]
[382560730,1756667446248,-480.0,0.00016968,2]
[382560731,1756667446257,-1241.19,0.00016968,2]
[382560732,1756667446267,-480.0,0.00016968,2]
[382560733,1756667446276,-590.93,0.00016968,2]
[382560734,1756667446286,-942.5,0.00016968,2]
[382560735,1756667446302,-526.1284565,0.00016968,2]
[382560736,1756667446311,-480.0,0.00016968,2]
[382560737,1756667446321,-480.0,0.00016968,2]
[382560738,1756667446330,-480.0,0.00016968,2]
[382560739,1756667446341,-480.0,0.00016968,2]
[382560740,1756667446350,-480.0,0.00016968,2]
[382560741,1756667446359,-480.0,0.00016968,2]
[382560742,1756667446368,-480.0,0.00016968,2]
[382560743,1756667446378,-480.0,0.00016968,2]
[382560744,1756667446388,-480.0,0.00016968,2]
[382560746,1756667446397,-480.0,0.00016968,2]
[382560748,1756667446406,-480.0,0.00016968,2]
[382560749,1756667446415,-480.0,0.00016968,2]
[382560750,1756667446424,-613.9538047,0.00016968,2]
[382560751,1756667446433,-480.0,0.00016968,2]
[382560752,1756667446442,-1192.66,0.00016968,2]
[382560753,1756667446451,-489.67,0.00016968,2]
[382560754,1756667446460,-480.0,0.00016968,2]
[382560755,1756667446470,-1113.86,0.00016968,2]
[382560756,1756667446479,-480.0,0.00016968,2]
[382560757,1756667446489,-480.0,0.00016968,2]
[382560758,1756667446498,-480.0,0.00016968,2]
[382560759,1756667446507,-709.45,0.00016968,2]
[382560760,1756667446516,-579.18,0.00016968,2]
[382560761,1756667446526,-480.0,0.00016968,2]
[382560762,1756667446535,-608.14,0.00016968,2]
[382560763,1756667446545,-480.0,0.00016968,2]
[382560764,1756667446554,-480.0,0.00016968,2]
[382560765,1756667446564,-480.0,0.00016968,2]
[382560766,1756667446574,-480.0,0.00016968,2]
[382560767,1756667446584,-480.0,0.00016968,2]
[382560768,1756667446593,-556.27,0.00016968,2]
[382560769,1756667446603,-480.0,0.00016968,2]
[382560770,1756667446612,-498.23,0.00016968,2]
[382560771,1756667446622,-480.0,0.00016968,2]
[382560772,1756667446632,-480.0,0.00016968,2]
[382560773,1756667446642,-555.06,0.00016968,2]
[382560774,1756667446651,-480.0,0.00016968,2]
[382560775,1756667446660,-480.0,0.00016968,2]
[382560776,1756667446672,-480.0,0.00016968,2]